Cogmind - Beta 10.2 @@@ ROGUE MODE // 2021.02.16 @ 21:04:15 Player: Momo Result: Self-destructed Performance ------------- Evolutions (2) 1000 Regions Visited (4) 800 Robots Destroyed (23) 115 Value Destroyed (549) 549 Prototype IDs (0) 0 Alien Tech Used (0) 0 Bonus (211) 211 TOTAL SCORE: 2675 Bonus ------- High Alert Combat Kills 11 Entered Garrisons 200 Cogmind --------- Core Integrity 117/550 Matter 255/300 Energy 100/100 System Corruption 0% Temperature Cool (0) Movement Core (50) Location -8/Garrison Parts ------- > --- POWER (1) -------- (None) > --- PROPULSION (2) --- (None) > --- UTILITY (6) ------ (None) > --- WEAPON (2) ------- (None) > --- INVENTORY (4) ---- Hardened Light Armor Plating EMP Blaster Grenade Launcher Peak State ------------ > --- POWER ------------ Ion Engine > --- PROPULSION ------- Advanced Treads VTOL Module > --- UTILITY ---------- Hardened Light Armor Plating > --- WEAPON ----------- EMP Blaster EMP Blaster > --- INVENTORY -------- Grenade Launcher [Rating: 12] Favorites ----------- Power Ion Engine Engine Ion Engine Propulsion VTOL Module Treads Advanced Treads Flight Unit VTOL Module Utility Hardened Light Armor Plating Protection Hardened Light Armor Plating Weapon EMP Blaster Energy Cannon Beam Cannon Launcher EMP Blaster Build | -11 -10 -9 -8 -8 ------- Run | Scr Mat Mat Mat Gar Slots Evolved 4 | . . 2 2 . Power . | . . . . . Propulsion . | . . . . . Utility 4 | . . 2 2 . Weapon . | . . . . . Parts Attached 21 | 1 6 10 1 3 Power 3 | 1 1 1 . . Engine 3 | 1 1 1 . . Core . | . . . . . Reactor . | . . . . . Propulsion 7 | . 3 3 1 . Treads 1 | . . . 1 . Leg . | . . . . . Wheel . | . . . . . Hover . | . . . . . Flight 6 | . 3 3 . . Utility 2 | . . 1 . 1 Device . | . . . . . Storage . | . . . . . Processor . | . . . . . Hackware . | . . . . . Protection 2 | . . 1 . 1 Artifact . | . . . . . Weapon 9 | . 2 5 . 2 Energy Gun . | . . . . . Energy Cannon 3 | . 2 1 . . Ballistic Gun . | . . . . . Ballistic Cannon . | . . . . . Launcher 6 | . . 4 . 2 Special Weapon . | . . . . . Impact Weapon . | . . . . . Slashing Weapon . | . . . . . Piercing Weapon . | . . . . . Special Melee Weapon . | . . . . . Unidentified Prototypes . | . . . . . Parts Lost 9 | . . 6 . 3 Power 1 | . . . . 1 Propulsion 3 | . . 2 . 1 Utility . | . . . . . Weapon 5 | . . 4 . 1 Highest Loss Streak 2 | . . 2 . 2 Average Slot Usage (%) 25 | . 24 26 18 24 Engine 8 | . 11 7 9 7 Flight 8 | . 7 8 9 6 Energy Cannon 2 | . 5 2 . . Launcher 4 | . . 6 . 4 Naked Turns 63 | . . 37 . 26 Heaviest Build 18 | 5 8 13 5 18 Greatest Support 22 | 3 8 10 5 22 Greatest Overweight (x) 2 | 1 1 2 . . Average Overweight (x) . | . . . . . Largest Inventory Capacity 4 | 4 4 4 4 4 Average Capacity 4 | 4 4 4 4 4 Most Carried 4 | . 3 4 4 4 Average Carried 2 | . 1 2 4 2 Final Capacity 4 | 4 4 4 4 4 Final Carried 4 | . 1 4 4 3 Class Distribution -------------------- 100% | Mutant Dominant Class ---------------- Mutant | -10/Materials Mutant | -9/Materials Mutant | -8/Materials Mutant | -8/Garrison Resources | -11 -10 -9 -8 -8 ----------- Run | Scr Mat Mat Mat Gar Matter Collected 501 | 210 . 195 . 96 Remotely . | . . . . . Salvage Created 656 | . 43 553 . 60 Parts 32 | . 4 27 . 1 Haulers Intercepted . | . . . . . Recyclers Shooed . | . . . . . Parts Field Recycled . | . . . . . Retrieved Matter . | . . . . . Parts Self-Destructed . | . . . . . Prevented . | . . . . . Kills | -11 -10 -9 -8 -8 ------- Run | Scr Mat Mat Mat Gar Combat Hostiles Destroyed 18 | . 3 14 . 1 Cannons 5 | . 3 2 . . AOE 12 | . . 11 . 1 Classes Destroyed 8 | . 1 6 . 1 Worker 2 | . . 2 . . Builder 1 | . . 1 . . Operator 1 | . . 1 . . Watcher 1 | . . 1 . . Swarmer 8 | . 3 5 . . Grunt 7 | . . 7 . . Brawler 1 | . . . . 1 Sentry 2 | . . 2 . . Best Kill Streak 8 | . 2 8 . 1 Combat Bots Only 5 | . 2 5 . 1 Max Kills in Single Turn 3 | . 1 3 . 1 Gunslinging . | . . . . . Exploded 2 | . . 2 . 1 Melee . | . . . . . Uniques/NPCs Destroyed . | . . . . . Combat | -11 -10 -9 -8 -8 -------- Run | Scr Mat Mat Mat Gar Damage Taken 1510 | . 79 775 . 656 Core 780 | . 30 317 . 433 Absorbed by Shields 79 | . . . . 79 Core Remaining (%) 69 | 100 88 20 . . Volleys Fired 54 | . 7 40 . 7 Largest 2 | . 1 1 . 2 Hottest 66 | . 60 60 . 66 Shots Fired 56 | . 7 40 . 9 Gun . | . . . . . Cannon 25 | . 7 18 . . Launcher 31 | . . 22 . 9 Special . | . . . . . Kinetic . | . . . . . Thermal 25 | . 7 18 . . Explosive 9 | . . 9 . . Electromagnetic 22 | . . 13 . 9 Robot Hit Streak 9 | . 2 9 . 3 Robot Miss Streak 3 | . 3 2 . 1 Penetration Max . | . . . . . Secondary Targets . | . . . . . Shots Hit Robots 29 | . 2 24 . 3 Core Hits 38 | . 3 28 . 7 Critical Hits . | . . . . . Critical Kills . | . . . . . Critical Parts Destroyed . | . . . . . Melee Attacks . | . . . . . Impact . | . . . . . Slashing . | . . . . . Piercing . | . . . . . Sneak Attacks . | . . . . . Combat Hostiles . | . . . . . Follow-up Attacks . | . . . . . Damage Inflicted 1572 | . 70 1222 . 280 Guns . | . . . . . Cannons 367 | . 70 297 . . Explosions 1205 | . . 925 . 280 Melee . | . . . . . Ramming . | . . . . . Kinetic . | . . . . . Thermal 583 | . 70 513 . . Explosive 185 | . . 185 . . Electromagnetic 804 | . . 524 . 280 Impact . | . . . . . Slashing . | . . . . . Piercing . | . . . . . Highest Corruption . | . . . . . Average Corruption . | . . . . . Corruption Purged . | . . . . . Overload Shots . | . . . . . Overflow Damage 8 | . . 8 . . Projectiles . | . . . . . Explosions 8 | . . 8 . . Melee . | . . . . . Knockbacks . | . . . . . Impact . | . . . . . Kinetic . | . . . . . Secondary . | . . . . . Self-Inflicted Damage 87 | . . 87 . . Shots 4 | . . 4 . . Rammed . | . . . . . Targets Rammed . | . . . . . Kicked . | . . . . . Crushed . | . . . . . Highest Temperature 362 | . 100 362 . 10 Average Temperature 93 | . 42 130 . 4 Received Heat Transfer 501 | . . 231 . 270 Effects 2 | . . 2 . . Short Circuit 2 | . . 2 . . Siege Activations . | . . . . . Robots Corrupted . | . . . . . Combat Hostiles . | . . . . . Parts Fried 4 | . . 4 . . Impact Corruptions . | . . . . . Robots Melted 1 | . . 1 . . Combat Hostiles 1 | . . 1 . . Parts Melted 3 | . . 3 . . Heat Transferred 1127 | . 148 979 . . Parts Sabotaged . | . . . . . Parts Stolen . | . . . . . Parts Stripped . | . . . . . Power Chain Reactions 6 | . . 5 . 1 Missiles Intercepted . | . . . . . Alert | -11 -10 -9 -8 -8 ------- Run | Scr Mat Mat Mat Gar Peak Influence 460 | . 100 460 135 289 Initial 135 | . . 42 135 87 Average 205 | . 43 277 135 152 Maximum Alert Level 2 | . . 2 . 1 Low Security (%) 51 | 100 100 28 100 71 Level 1 31 | . . 42 . 28 Level 2 17 | . . 29 . . Level 3 . | . . . . . Level 4 . | . . . . . Level 5 . | . . . . . High Security . | . . . . . Max Security . | . . . . . Squads Dispatched 1 | . . 1 . . Investigation . | . . . . . Extermination . | . . . . . Reinforcement 1 | . . 1 . . Assault . | . . . . . Garrison . | . . . . . Intercept . | . . . . . Construction Impeded . | . . . . . Haulers Reinforced . | . . . . . Stealth | -11 -10 -9 -8 -8 --------- Run | Scr Mat Mat Mat Gar Distress Signals 5 | . . 5 . . Communications Jammed . | . . . . . Distress Signals . | . . . . . Times Spotted 51 | . 4 31 . 16 Peak Tracking Total 12 | . 3 12 . 11 Tactical Retreats 9 | . 1 4 . 4 Traps | -11 -10 -9 -8 -8 ------- Run | Scr Mat Mat Mat Gar Traps Triggered 2 | . . . . 2 Indirectly . | . . . . . Trap Hack Attempts . | . . . . . Triggered . | . . . . . Disarmed . | . . . . . Reprogrammed . | . . . . . Reused . | . . . . . Traps Extracted . | . . . . . Installed . | . . . . . Triggered 1 | . . . . 1 Machines | -11 -10 -9 -8 -8 ---------- Run | Scr Mat Mat Mat Gar Machines Disabled 4 | . . 4 . . Max in Single Turn 1 | . . 1 . . Machines Sabotaged . | . . . . . Garrisons Compromised . | . . . . . Overloaded Fab Kills . | . . . . . Fab Network Shutdowns . | . . . . . Hacking | -11 -10 -9 -8 -8 --------- Run | Scr Mat Mat Mat Gar Machines Accessed 5 | . . 4 1 . Terminals 4 | . . 4 . . Fabricators . | . . . . . Repair Stations . | . . . . . Recycling Units . | . . . . . Scanalyzers . | . . . . . Garrison Access 1 | . . . 1 . Total Hacks 15 | . . 14 1 . Successful 5 | . . 4 1 . Failed 10 | . . 10 . . Catastrophic . | . . . . . Database Lockouts . | . . . . . Manual 4 | . . 4 . . Terminals 14 | . . 14 . . Fabricators . | . . . . . Repair Stations . | . . . . . Recycling Units . | . . . . . Scanalyzers . | . . . . . Garrison Access 1 | . . . 1 . Terminal Hacks 2 | . . 2 . . Robot Analysis 1 | . . 1 . . Unreport Threat 1 | . . 1 . . Fabricator Hacks . | . . . . . Repair Station Hacks . | . . . . . Recycling Unit Hacks . | . . . . . Scanalyzer . | . . . . . Garrison Access Hacks 1 | . . . 1 . Unlock Access 1 | . . . 1 . Unauthorized Hacks 2 | . . 2 . . Terminals 2 | . . 2 . . Assimilate 2 | . . 2 . . Fabricators . | . . . . . Repair Stations . | . . . . . Recycling Units . | . . . . . Scanalyzers . | . . . . . Garrison Access . | . . . . . Data Cores Recovered . | . . . . . Used . | . . . . . Hacking Detections 3 | . . 3 . . Full Trace Events . | . . . . . Feedback Events . | . . . . . Feedback Blocked . | . . . . . Robot Schematics Acquired . | . . . . . Robots Built . | . . . . . Matter . | . . . . . Time . | . . . . . Total Robot Build Rating . | . . . . . Part Schematics Acquired . | . . . . . Parts Built . | . . . . . Matter . | . . . . . Time . | . . . . . Total Part Build Rating . | . . . . . Parts Repaired . | . . . . . Time . | . . . . . Parts Recycled . | . . . . . Recycled Matter . | . . . . . Retrieved Matter . | . . . . . Retrieved Components . | . . . . . Parts Scanalyzed . | . . . . . Part Schematics Acquired . | . . . . . Parts Damaged . | . . . . . Bothacking | -11 -10 -9 -8 -8 ------------ Run | Scr Mat Mat Mat Gar Used RIF Installer . | . . . . . Robots Hacked . | . . . . . Non-combat . | . . . . . Combat . | . . . . . Robot Hacks Applied . | . . . . . Relay Couplers Released . | . . . . . Robots Rewired . | . . . . . Allies Hacked . | . . . . . Hacks Repelled . | . . . . . Allies | -11 -10 -9 -8 -8 -------- Run | Scr Mat Mat Mat Gar Total Allies 1 | . . 1 . . Largest Group 1 | . . 1 1 1 Highest-Rated Group 10 | . . 10 10 10 Highest-Rated Ally 10 | . . 10 10 10 Total Orders . | . . . . . Ally Attacks . | . . . . . Total Damage . | . . . . . Kills . | . . . . . Allies Corrupted . | . . . . . Allies Melted . | . . . . . Intel | -11 -10 -9 -8 -8 ------- Run | Scr Mat Mat Mat Gar Robot Analysis Total 1 | . . 1 . . Derelict Logs Recovered . | . . . . . Drone Launches . | . . . . . Drone Recoveries . | . . . . . Exploration | -11 -10 -9 -8 -8 ------------- Run | Scr Mat Mat Mat Gar Turns Passed 715 | 32 107 438 15 123 Spaces Moved 877 | 38 123 530 19 167 Core 338 | 38 57 211 . 32 Treads 5 | . . . . 5 Legs . | . . . . . Wheels . | . . . . . Hover . | . . . . . Flight 534 | . 66 319 19 130 Fastest Speed 37 | 50 37 37 40 40 Average Speed 59 | 81 66 59 43 48 Slowest Speed 200 | 100 100 200 60 145 Overloaded Moves . | . . . . . Propulsion Burnouts . | . . . . . Robots Hopped 2 | . . 2 . . Cave-ins Triggered . | . . . . . Exploration Rate (%) 31 | 3 29 76 3 46 Regions Visited 4 Branch Regions . Pre-discovered Areas . | . . . . . Known Exits Taken 1 | . . . 1 . Unknown Exits Taken 3 | 1 1 1 . . Scrap Searched . | . . . . . Spaces Dug . | . . . . . Terrain Destroyed 82 | . . 80 . 2 Melee . | . . . . . Projectile . | . . . . . AOE 82 | . . 80 . 2 Terrain Rammed . | . . . . . Walls Destroyed . | . . . . . Machines Disabled . | . . . . . Actions | -11 -10 -9 -8 -8 --------- Run | Scr Mat Mat Mat Gar Total 1015 | 38 140 612 24 201 Wait 27 | . . 17 5 5 Move 869 | 37 122 525 18 167 Hop 2 | . . 2 . . Pick Up 10 | . 2 8 . . Fast Attach 10 | 1 3 5 1 . Attach 11 | . 3 5 . 3 Detach 8 | . 2 4 . 2 Swap . | . . . . . Drop 8 | . 1 6 . 1 Fire 54 | . 7 40 . 7 Melee . | . . . . . Ram . | . . . . . Kick . | . . . . . Crush . | . . . . . Escape Stasis 16 | . . . . 16 Rewire . | . . . . . Trap . | . . . . . Miscellaneous . | . . . . . Route ------- -11/Scrapyard -10/Materials -9/Materials (discovered 3 exits: *Mat x2 / [*Min]) -8/Materials -8/Garrison (discovered 2 exits: [*Mat x2]) History --------- Turn | Location | Event 3 | -11/Scrapyard | Discovered new exit (range 16) 33 | -11/Scrapyard | Entered Materials 117 | -10/Materials | Discovered new exit (range 3) 140 | -10/Materials | Entered another Materials area 140 | -9/Materials | Evolved 2 slots: Utility x2 273 | -9/Materials | Discovered new exit (range 14) 313 | -9/Materials | Core integrity fell below 50% 341 | -9/Materials | Build established: Mutant 447 | -9/Materials | Discovered new exit (range 16) 567 | -9/Materials | Discovered new exit (range 16) 578 | -9/Materials | Entered another Materials area 578 | -8/Materials | Accompanied by 1 ally 578 | -8/Materials | Evolved 2 slots: Utility x2 583 | -8/Materials | Identified exit to Garrison 593 | -8/Materials | Entered Garrison 593 | -8/Garrison | Accompanied by 1 ally 614 | -8/Garrison | Triggered checkpoint 638 | -8/Garrison | Triggered checkpoint 663 | -8/Garrison | Discovered new exit (range 9) 691 | -8/Garrison | Core integrity fell below 50% 691 | -8/Garrison | Triggered checkpoint 700 | -8/Garrison | Discovered new exit (range 9) 716 | -8/Garrison | Self-destructed Last Messages --------------- 00690_ Stasis field depleted. 00691_ G-47 Trooper misfires. 00693_ Penetrated by Slug. 00697_ G-47 Trooper system corruption misinterpreted. 00697_ G-47 Trooper triggered Stasis Trap. 00697_ A bubble of rippling energy engulfs the area. 00697_ Field strength at 85. 00700_ EXIT=FOUND 00706_ Triggered Stasis Trap. 00706_ A bubble of rippling energy engulfs the area. 00706_ Field strength at 94. 00707_ Field strength at 88. 00708_ Field strength at 82. 00709_ Field strength at 76. 00710_ Field strength at 70. 00711_ Field strength at 60. 00712_ Field strength at 54. 00713_ Field strength at 48. 00714_ Field strength at 34. 00715_ Field strength at 28. Map ----- +----------------------------------------------------+ | ??????????????????????????????????????????????# # | | ??????????????????????????????????????????????# # | | ??????????????????????????????????????????????# # | | ??????????????????????????????????????????????# | | ????????????????????????????????????? ?#####?# # | | ????????????????????????????????????# ## ## # | | ???????????????????????????????????## ## ## # | | ???????????????????????????????????# | | ???????????????????????????????????# | | ???????????????????????????????????# | | ???????????????????????????????????# ## #" | | ?????????????????????????????????### ## #" % | | ?????????????????????????????????# | | ?????????????????????????????????# | | ?????????????????????????????????# | | ?????????????????????????????????? | | ???????????????????????????????????# ## ## | | ?????????????????????????########### ## ## | | ?????????????????????????# ^^ | | ?????????????????????????# | | ?????????????????????????# ######## ^ | | ?????????????????????????# g#??????###### ## # | | ?????????????????????????# g#???????????# ## # | | ?????????????????????????# #???????????####### # | | ????????????????########## ######????????????# # | | ????????????????# @ g g h #???????# # | | ????????????????# ######????????????# # | | ????????????????# < ##### ###?????????????????# # | | ????????????????# ????# #???????????????????# # | | ????????????????####????# #???????????????????# | | ????????????????????????# #???????????????????# | | ????????????????????????# #???????????????????#### | | ????????????????????????# #??????????????????????? | | ????????????????????????# #??????????????????????? | | ????????????????????????# #??????????????????????? | | ????????????????????????# #??????????????????????? | | ????????????????????????? ???????????????????????? | | ????????????????????????? ???????????????????????? | | ????????????????????????? ???????????????????????? | | ????????????????????????? ???????????????????????? | | ????????????????????????? ???????????????????????? | | ????????????????????????? ???????????????????????? | | ?????????????????????????#???????????????????????? | | ?????????????????????????????????????????????????? | | ?????????????????????????????????????????????????? | | ?????????????????????????????????????????????????? | | ?????????????????????????????????????????????????? | | ?????????????????????????????????????????????????? | | ?????????????????????????????????????????????????? | | ?????????????????????????????????????????????????? | +----------------------------------------------------+ Best States ------------- Heat Dissipation 31 Energy Generation 10 Energy Capacity 250 Matter Stores 300 Matter Capacity 300 Sight Range 16 Terrain Scan Density 10 Armor Coverage 150 Evasion (%) 62 Recoil Reduction 1 Item Schematics ----------------- None Robot Schematics ------------------ None Fabricated ------------ Nothing Alien Tech Used ----------------- None Achievements -------------- None Challenges ------------ None Game ------ Seed InsulatedFrostMinigun Manual? 0 Play Time 00:12:48 Cumulative 205.3 hours Start 2021.02.16 @ 19:55:33 End 2021.02.16 @ 21:04:15 Sessions 1 Manual Loads 0 Difficulty Rogue Special Mode None Game No. 92 Rogue 88 Adventurer 0 Explorer 4 Win Type - Total 12 Types 4/0/2/2/0/2/2/0/0 Lore% 73 Gallery% 78 Achievement% 67 Wizard Run 0 Options --------- ASCII 0 Keyboard 0 Movement Mouse Keybinds 0 Fullscreen 1 Font 18/SmallcapsGlow Map View 76x50 Tactical HUD 1 Map Filters NONE Filters NONE Steam 1 RUN: 8eecd4e3-3f81-4091-a388-c55c46d10ca5